{"text_format":"1","workbook":"xlsx","n_sheets":10,"sheets":["学校基礎情報","Data","成証","教課","在証見込","在証除後","卒証","公印 ","アポスティーユ","外務省お願い"],"not_rendered":{"charts":0,"images":0,"macros":1,"external_links":0,"defined_names":8,"comments":1,"pivot_tables":0},"unopened":[],"bounds":{"document_bytes":16777216,"sheet_cells":100000,"rows_first":2000,"rows_last":500,"rows_between":2000,"halvings":0,"cell_chars":16384,"cell_head_chars":4096},"cells_cut":0,"cells_raw":0,"read":"whole","date_system":"1900"}

{"sheet":"学校基礎情報","index":0,"n_rows":33,"n_cols":4,"rows_kept":33,"cut":false,"hidden":false,"merged":[[13,1,13,7],[6,1,6,7],[8,1,8,7],[9,1,9,7],[10,1,10,7],[1,1,1,7],[2,1,2,7],[4,1,4,7],[5,1,5,7],[12,1,12,7]]}
["　　　　"]
["学校名　　　（日本語）"]
["　　　　　　　　　　　　 （ローマ字）"]
[]
["学校所在地（日本語）"]
["　　　　　　　　　　     （ローマ字）"]
["<2行に分けて記入してください。>"]
[]
["電話番号"]
["FAX番号"]
["E-mailアドレス"]
[]
["学校長名　（日本語）"]
["　　　　　　　　　　　 （ローマ字）"]
[]
["生徒始業時間"]
["生徒終業時間"]
[]
["年間授業時数","１年","２年","３年"]
["国語"]
["社会"]
["数学"]
["理科"]
["音楽"]
["美術"]
["保健体育"]
["技術家庭"]
["英語"]
["総合"]
["道徳"]
["特活"]
[]
[null,"※個人データ入力画面にお進みください。"]

{"sheet":"Data","index":1,"n_rows":41,"n_cols":48,"rows_kept":41,"cut":false,"hidden":false,"merged":[[1,0,1,6],[3,0,3,6],[4,0,4,6],[5,0,5,6],[9,26,9,28],[7,19,7,23],[7,26,7,28],[12,0,12,6],[13,0,13,6],[7,13,7,17],[1,7,1,11],[1,13,1,17],[5,13,5,17],[1,19,1,23],[5,19,5,23],[3,7,3,32],[7,29,7,33],[9,29,9,33],[11,0,11,6],[9,0,9,6],[9,7,9,11],[9,13,9,17],[9,19,9,23],[2,0,2,6],[17,0,17,2],[17,3,17,5],[17,6,17,8],[17,9,17,11],[17,12,17,14],[17,18,17,20],[17,30,17,32],[16,0,16,6],[14,32,14,36],[12,25,14,25],[17,33,17,35],[17,36,17,38],[14,0,14,6],[13,7,13,11],[13,13,13,17],[13,19,13,23],[12,7,12,11],[14,13,14,17],[17,24,17,26],[12,38,12,42],[13,26,13,30],[13,32,13,36],[13,38,13,42],[12,26,12,30],[20,18,20,20],[20,21,20,23],[20,24,20,26],[20,27,20,29],[14,19,14,23],[12,13,12,17],[12,19,12,23],[14,7,14,11],[14,38,14,42],[18,33,18,35],[18,36,18,38],[19,33,19,35],[19,36,19,38],[20,33,20,35],[20,36,20,38],[12,32,12,36],[14,26,14,30],[19,30,19,32],[20,30,20,32],[19,0,19,2],[18,15,18,17],[18,30,18,32],[7,45,7,46],[8,45,8,46],[9,45,9,46],[10,45,10,46],[11,45,11,46],[12,45,12,46],[16,45,16,46],[17,27,17,29],[18,27,18,29],[17,15,17,17],[17,21,17,23],[18,24,18,26],[18,21,18,23],[18,18,18,20],[18,0,18,2],[18,3,18,5],[18,6,18,8],[18,9,18,11],[18,12,18,14],[19,3,19,5],[19,6,19,8],[25,9,25,11],[25,12,25,14],[23,12,23,14],[24,6,24,8],[24,9,24,11],[24,12,24,14],[1,45,1,46],[2,45,2,46],[3,45,3,46],[4,45,4,46],[5,45,5,46],[6,45,6,46],[13,45,13,46],[14,45,14,46],[15,45,15,46],[19,9,19,11],[19,12,19,14],[19,24,19,26],[20,9,20,11],[19,18,19,20],[19,21,19,23],[19,27,19,29],[20,12,20,14],[20,15,20,17],[36,21,37,21],[42,15,43,17],[42,3,43,5],[35,3,35,5],[35,6,35,12],[19,15,19,17],[26,6,26,8],[26,12,26,14],[26,9,26,11],[25,6,25,8],[22,0,22,6],[23,6,23,8],[23,9,23,11],[23,0,23,5],[20,0,20,2],[20,3,20,5],[20,6,20,8],[33,6,33,26],[30,0,30,6],[31,0,31,32],[30,7,30,32],[24,0,24,5],[25,0,25,5],[26,0,26,5],[2,7,2,12],[10,0,10,6],[10,7,10,11],[10,13,10,17],[10,19,10,23],[5,7,5,11],[4,7,4,23],[7,0,7,6],[7,7,7,11]]}
[]
["書類発行日",null,null,null,null,null,null,null,null,null,null,null,"年",null,null,null,null,null,"月",null,null,null,null,null,"日",null,null,null,null,null,null,null,null,null,null,null,null,null,null,null,null,null,null,null,null,"H15",null,2003]
["書類提出国",null,null,null,null,null,null,null,null,null,null,null,null,null,null,null,null,null,null,null,null,null,null,null,null,null,null,null,null,null,null,null,null,null,null,null,null,null,null,null,null,null,null,null,null,"H16",null,2004]
["名前（正式名）",null,null,null,null,null,null,null,null,null,null,null,null,null,null,null,null,null,null,null,null,null,null,null,null,null,null,null,null,null,null,null,null,null,null,null,null,null,null,null,null,null,null,null,null,"H17",null,2005]
["名前（通称名）",null,null,null,null,null,null,null,null,null,null,null,null,null,null,null,null,null,null,null,null,null,null,null,null,null,null,null,null,null,null,null,null,null,null,null,null,null,null,null,null,null,null,null,null,"H18",null,2006]
["生年月日",null,null,null,null,null,null,null,null,null,null,null,"年",null,null,null,null,null,"月",null,null,null,null,null,"日",null,null,null,null,null,null,null,null,null,null,null,null,null,null,null,null,null,null,null,null,"H19",null,2007]
[null,null,null,null,null,null,null,null,null,null,null,null,null,null,null,null,null,null,null,null,null,null,null,null,null,null,null,null,null,null,null,null,null,null,null,null,null,null,null,null,null,null,null,null,null,"H20",null,2008]
["転入学日",null,null,null,null,null,null,null,null,null,null,null,"年",null,null,null,null,null,"月",null,null,null,null,null,"日",null,"学年",null,null,null,null,null,null,null,null,null,null,null,null,null,null,null,null,null,null,"H21",null,2009]
[null,null,null,null,null,null,null,null,null,null,null,null,null,null,null,null,null,null,null,null,null,null,null,null,null,null,null,null,null,null,null,null,null,null,null,null,null,null,null,null,null,null,null,null,null,"H22",null,2010]
["転退学日",null,null,null,null,null,null,null,null,null,null,null,"年",null,null,null,null,null,"月",null,null,null,null,null,"日",null,"学年",null,null,null,null,null,null,null,null,null,null,null,null,null,null,null,null,null,null,"H23",null,2011]
["卒業年月日",null,null,null,null,null,null,null,null,null,null,null,"年",null,null,null,null,null,"月",null,null,null,null,null,"日",null,null,null,null,null,null,null,null,null,null,null,null,null,null,null,null,null,null,null,null,"H24",null,2012]
["在籍期間",null,null,null,null,null,null,null,null,null,null,null,null,null,null,null,null,null,null,null,null,null,null,null,null,null,null,null,null,null,null,null,null,null,null,null,null,null,null,null,null,null,null,null,null,"H25",null,2013]
["1年",null,null,null,null,null,null,null,null,null,null,null,"年",null,null,null,null,null,"月",null,null,null,null,null,"日","～",null,null,null,null,null,"年",null,null,null,null,null,"月",null,null,null,null,null,"日",null,"H26",null,2014]
["2年",null,null,null,null,null,null,null,null,null,null,null,"年",null,null,null,null,null,"月",null,null,null,null,null,"日",null,null,null,null,null,null,"年",null,null,null,null,null,"月",null,null,null,null,null,"日",null,"H27",null,2015]
["3年",null,null,null,null,null,null,null,null,null,null,null,"年",null,null,null,null,null,"月",null,null,null,null,null,"日",null,null,null,null,null,null,"年",null,null,null,null,null,"月",null,null,null,null,null,"日",null,"H28",null,2016]
[null,null,null,null,null,null,null,null,null,null,null,null,null,null,null,null,null,null,null,null,null,null,null,null,null,null,null,null,null,null,null,null,null,null,null,null,null,null,null,null,null,null,null,null,null,"H29",null,2017]
["成績",null,null,null,null,null,null,null,null,null,null,null,null,null,null,null,null,null,null,null,null,null,null,null,null,null,null,null,null,null,null,null,null,null,null,null,null,null,null,null,null,null,null,null,null,"H30",null,2018]
[null,null,null,"国語",null,null,"社会",null,null,"数学",null,null,"理科",null,null,"音楽",null,null,"美術",null,null,"保健体育",null,null,"技術家庭",null,null,"英語",null,null,"総合",null,null,"道徳",null,null,"特活"]
["1年"]
["2年"]
["3年"]
[]
["出欠席"]
[null,null,null,null,null,null,"1年",null,null,"2年",null,null,"3年"]
["授業日数"]
["出席日数"]
["欠席日数"]
[]
[]
[]
["正式名確認用\n再入力"]
[{"$f":"IF(H31=H4,\"◎OKです。\",\"\"\"入力ミスあり。再確認してください。\")","v":"◎OKです。"}]
[]
[null,null,null,null,null,null,"＊各シートを確認し、必要書類を印刷してください。"]
[]
[]
[null,null,null,null,null,null,null,null,null,null,null,null,null,null,null,null,null,null,null,null,null,null,null,null,null,null,null,null,null,null,"製作　　平成１８年１月"]
[null,null,null,null,null,null,null,null,null,null,null,null,null,null,null,null,null,null,null,null,null,null,null,null,null,null,null,null,null,null,"　　　　　岩西小学校"]
[null,null,null,null,null,null,null,null,null,null,null,null,null,null,null,null,null,null,null,null,null,null,null,null,null,null,null,null,null,null,"改訂　　平成２５年９月"]
[null,null,null,null,null,null,null,null,null,null,null,null,null,null,null,null,null,null,null,null,null,null,null,null,null,null,null,null,null,null,"　　　　　平成２８年３月"]
[null,null,null,null,null,null,null,null,null,null,null,null,null,null,null,null,null,null,null,null,null,null,null,null,null,null,null,null,null,null,null,null,null,"学校教育課"]

{"sheet":"成証","index":2,"n_rows":50,"n_cols":53,"rows_kept":50,"cut":false,"hidden":false,"merged":[[36,0,37,3],[36,16,36,19],[37,16,37,19],[28,46,28,49],[28,50,28,53],[29,46,29,49],[29,50,29,53],[30,46,30,49],[30,50,30,53],[31,46,31,49],[31,50,31,53],[32,50,32,53],[32,46,32,49],[28,30,28,33],[29,30,29,33],[28,26,28,29],[29,26,29,29],[30,26,30,29],[31,26,31,29],[32,26,32,29],[30,30,30,33],[31,30,31,33],[32,30,32,33],[30,0,30,5],[32,0,32,5],[28,0,29,5],[34,23,34,24],[34,29,34,30],[34,5,34,6],[34,11,34,12],[34,17,34,18],[32,6,32,9],[28,6,28,9],[28,10,28,13],[29,6,29,9],[31,6,31,9],[31,14,31,17],[32,10,32,13],[32,18,32,21],[30,14,30,17],[32,14,32,17],[30,6,30,9],[29,22,29,25],[31,10,31,13],[29,14,29,17],[29,18,29,21],[31,18,31,21],[29,10,29,13],[30,10,30,13],[28,14,28,17],[25,32,25,35],[29,38,29,41],[28,38,28,41],[28,34,28,37],[29,34,29,37],[31,0,31,5],[28,42,28,45],[29,42,29,45],[30,42,30,45],[31,42,31,45],[28,18,28,21],[28,22,28,25],[30,18,30,21],[31,22,31,25],[32,38,32,41],[31,38,31,41],[30,38,30,41],[30,34,30,37],[31,34,31,37],[32,34,32,37],[32,42,32,45],[30,22,30,25],[22,22,22,24],[32,22,32,25],[22,11,22,14],[24,32,24,35],[24,41,24,42],[24,46,24,47],[22,32,22,35],[24,43,24,45],[22,43,22,45],[25,11,25,14],[25,22,25,24],[25,17,25,19],[24,15,24,16],[24,22,24,24],[24,25,24,26],[24,38,24,40],[22,38,22,40],[24,17,24,19],[24,20,24,21],[22,17,22,19],[25,43,25,45],[25,27,25,31],[21,11,21,14],[15,247,15,262],[15,55,15,102],[15,103,15,150],[15,151,15,198],[15,199,15,246],[18,38,18,40],[19,43,19,45],[18,17,18,19],[21,46,21,47],[21,20,21,21],[18,32,18,35],[18,27,18,31],[19,32,19,35],[19,27,19,31],[21,22,21,24],[19,22,19,24],[19,17,19,19],[21,32,21,35],[21,15,21,16],[3,0,3,54],[4,0,4,54],[18,4,18,9],[19,4,19,9],[21,4,21,9],[0,38,0,41],[1,38,1,41],[0,42,0,43],[1,42,1,43],[1,44,1,46],[1,49,1,51],[10,37,10,40],[11,37,11,40],[21,36,21,37],[21,38,21,40],[21,41,21,42],[10,41,10,42],[19,38,19,40],[0,49,0,51],[0,44,0,46],[18,41,18,42],[19,11,19,14],[21,43,21,45],[18,43,18,45],[22,4,22,9],[24,4,24,9],[25,4,25,9],[10,48,10,50],[10,46,10,47],[24,36,24,37],[25,38,25,40],[10,51,10,52],[24,11,24,14],[21,17,21,19],[21,25,21,26],[18,25,18,26],[21,27,21,31],[22,27,22,31],[24,27,24,31],[18,20,18,21],[18,11,18,14],[18,22,18,24],[18,15,18,16],[10,26,10,34],[10,43,10,45],[11,43,11,45],[18,36,18,37],[18,46,18,47]]}
[null,null,null,null,null,null,null,null,null,null,null,null,null,null,null,null,null,null,null,null,null,null,null,null,null,null,null,null,null,null,null,null,null,null,null,null,null,null,{"$f":"Data!$H$2","v":0},null,null,null,"年",null,{"$f":"Data!$N$2","v":0},null,null,"月",null,{"$f":"Data!$T$2","v":0},null,null,"日"]
[null,null,null,null,null,null,null,null,null,null,null,null,null,null,null,null,null,null,null,null,null,null,null,null,null,null,null,null,null,null,null,null,null,null,null,null,null,null,"Year",null,null,null,null,null,"Month",null,null,null,null,"Day"]
[]
["成 績 証 明 書"]
["CERTIFICATE OF SCHOOL RECORD"]
[]
[]
[null,null,null,null,null,null,null,null,null,null,null,null,null,null,null,null,null,null,null,null,null,null,null,null,null,null,"氏  名",null,null,null,null,null,null,null,{"$f":"Data!$H$5","v":0}]
[null,null,null,null,null,null,null,null,null,null,null,null,null,null,null,null,null,null,null,null,null,null,null,null,null,null,"Name",null,null,null,null,null,null,null,{"$f":"Data!$H$4","v":0}]
[]
[null,null,null,null,null,null,null,null,null,null,null,null,null,null,null,null,null,null,null,null,null,null,null,null,null,null,"生   年  月   日",null,null,null,null,null,null,null,null,null,null,{"$f":"Data!$H$6","v":0},null,null,null,"年",null,{"$f":"Data!$N$6","v":0},null,null,"月",null,{"$f":"Data!$T$6","v":0},null,null,"日"]
[null,null,null,null,null,null,null,null,null,null,null,null,null,null,null,null,null,null,null,null,null,null,null,null,null,null,"Birth date",null,null,null,null,null,null,null,null,null,null,"Year",null,null,null,null,null,"Month",null,null,null,null,null,"Day"]
[]
[]
["上記のものは本校に在学し、次のような成績であったことを証明します。"]
["The person whose name appears above was registered in this school and the record is as the following:"]
[]
[]
[null,null,null,null,"第1学年",null,null,null,null,null,"(",{"$f":"Data!$H$13","v":0},null,null,null,"年",null,{"$f":"Data!$N$13","v":0},null,null,"月",null,{"$f":"Data!$T$13","v":0},null,null,"日",null,"～",null,null,null,null,{"$f":"Data!$AA$13","v":0},null,null,null,"年",null,{"$f":"Data!AG13","v":0},null,null,"月",null,{"$f":"Data!$AM$13","v":0},null,null,"日",null,"）"]
[null,null,null,null,"1st grade",null,null,null,null,null,null,"Year",null,null,null,null,null,"Month",null,null,null,null,"Day",null,null,null,null,"to",null,null,null,null,"Year",null,null,null,null,null,"Month",null,null,null,null,"Day"]
[]
[null,null,null,null,"第2学年",null,null,null,null,null,"(",{"$f":"Data!$H$14","v":0},null,null,null,"年",null,{"$f":"Data!$N$14","v":0},null,null,"月",null,{"$f":"Data!$T$14","v":0},null,null,"日",null,"～",null,null,null,null,{"$f":"Data!$AA$14","v":0},null,null,null,"年",null,{"$f":"Data!AG14","v":0},null,null,"月",null,{"$f":"Data!$AM$14","v":0},null,null,"日",null,"）"]
[null,null,null,null,"2nd grade",null,null,null,null,null,null,"Year",null,null,null,null,null,"Month",null,null,null,null,"Day",null,null,null,null,"to",null,null,null,null,"Year",null,null,null,null,null,"Month",null,null,null,null,"Day"]
[]
[null,null,null,null,"第3学年",null,null,null,null,null,"(",{"$f":"Data!$H$15","v":0},null,null,null,"年",null,{"$f":"Data!$N$15","v":0},null,null,"月",null,{"$f":"Data!$T$15","v":0},null,null,"日",null,"～",null,null,null,null,{"$f":"Data!$AA$15","v":0},null,null,null,"年",null,{"$f":"Data!AG15","v":0},null,null,"月",null,{"$f":"Data!$AM$15","v":0},null,null,"日",null,"）"]
[null,null,null,null,"3rd grade",null,null,null,null,null,null,"Year",null,null,null,null,null,"Month",null,null,null,null,"Day",null,null,null,null,"to",null,null,null,null,"Year",null,null,null,null,null,"Month",null,null,null,null,"Day"]
[]
[]
[null,null,null,null,null,null,"国語",null,null,null,"社会",null,null,null,"数学",null,null,null,"理科",null,null,null,"音楽",null,null,null,"美術",null,null,null,"保健体育",null,null,null,"技術家庭",null,null,null,"英語",null,null,null,"総合",null,null,null,"道徳",null,null,null,"特活"]
[null,null,null,null,null,null,"Japanese",null,null,null,"Social\nStudies",null,null,null,"Mathe-\nmatics",null,null,null,"Science",null,null,null," Music",null,null,null,"Art",null,null,null,"Physical\nEducation",null,null,null,"Technical arts and Home economics",null,null,null,"English",null,null,null,"Integrated\nStudies",null,null,null,"Moral Education",null,null,null,"Special activities"]
["１年 1st grade",null,null,null,null,null,{"$f":"Data!D19","v":0},null,null,null,{"$f":"Data!G19","v":0},null,null,null,{"$f":"Data!J19","v":0},null,null,null,{"$f":"Data!M19","v":0},null,null,null,{"$f":"Data!P19","v":0},null,null,null,{"$f":"Data!S19","v":0},null,null,null,{"$f":"Data!V19","v":0},null,null,null,{"$f":"Data!Y19","v":0},null,null,null,{"$f":"Data!AB19","v":0},null,null,null,{"$f":"Data!AE19","v":0},null,null,null,{"$f":"Data!AH19","v":0},null,null,null,{"$f":"Data!AK19","v":0}]
["２年 2nd grade",null,null,null,null,null,{"$f":"Data!D20","v":0},null,null,null,{"$f":"Data!G20","v":0},null,null,null,{"$f":"Data!J20","v":0},null,null,null,{"$f":"Data!M20","v":0},null,null,null,{"$f":"Data!P20","v":0},null,null,null,{"$f":"Data!S20","v":0},null,null,null,{"$f":"Data!V20","v":0},null,null,null,{"$f":"Data!Y20","v":0},null,null,null,{"$f":"Data!AB20","v":0},null,null,null,{"$f":"Data!AE20","v":0},null,null,null,{"$f":"Data!AH20","v":0},null,null,null,{"$f":"Data!AK20","v":0}]
["３年 3rd grade",null,null,null,null,null,{"$f":"Data!D21","v":0},null,null,null,{"$f":"Data!G21","v":0},null,null,null,{"$f":"Data!J21","v":0},null,null,null,{"$f":"Data!M21","v":0},null,null,null,{"$f":"Data!P21","v":0},null,null,null,{"$f":"Data!S21","v":0},null,null,null,{"$f":"Data!V21","v":0},null,null,null,{"$f":"Data!Y21","v":0},null,null,null,{"$f":"Data!AB21","v":0},null,null,null,{"$f":"Data!AE21","v":0},null,null,null,{"$f":"Data!AH21","v":0},null,null,null,{"$f":"Data!AK21","v":0}]
[]
[null,null,null,null,null,5,null,null,null,null,null,4,null,null,null,null,null,3,null,null,null,null,null,2,null,null,null,null,null,1]
[]
["Grade   \nscale： ",null,null,null,null,"大変良い",null,null,null,null,null,null,null,null,null,null,"普通",null,null,null,null,null,null,null,null,null,null,"がんばりましょう",null,null,null,null,null,null,null,null,null,null,null,"＊＝評価せず"]
[null,null,null,null,null,"Excellent",null,null,null,null,null,null,null,null,null,null,"Good",null,null,null,null,null,null,null,null,null,null,"Needs effort",null,null,null,null,null,null,null,null,null,null,null,"＊＝No rating"]
[]
[null,"学校所在地:",null,null,null,null,null,null,null,null,null,null,{"$f":"学校基礎情報!$B$5","v":0}]
[null,"School address:",null,null,null,null,null,null,null,null,null,null,{"$f":"学校基礎情報!$B$6","v":0}]
[null,null,null,null,null,null,null,null,null,null,null,null,{"$f":"学校基礎情報!$B$7","v":0}]
[]
[null,"学校名:",null,null,null,null,null,null,null,null,null,null,{"$f":"学校基礎情報!$B$2","v":0}]
[null,"School name:",null,null,null,null,null,null,null,null,null,null,{"$f":"学校基礎情報!$B$3","v":0}]
[null,null,null,null,null,null,null,null,null,null,null,null,"(Toyohashi City Municipal Junior High School)"]
[]
[]
[null,"校長名:",null,null,null,null,null,null,null,null,null,null,{"$f":"学校基礎情報!$B$13","v":0},null,null,null,null,null,null,null,null,null,null,null,null,null,null,null,null,null,null,null,null,null,null,null,null,"公印"]
[null,"Principal name:",null,null,null,null,null,null,null,null,null,null,{"$f":"学校基礎情報!$B$14","v":0},null,null,null,null,null,null,null,null,null,null,null,null,null,null,null,null,null,null,null,null,null,null,null,null,"Official Stamp"]

{"sheet":"教課","index":3,"n_rows":59,"n_cols":46,"rows_kept":59,"cut":false,"hidden":false,"merged":[[46,3,46,22],[45,23,45,27],[45,28,45,32],[33,23,33,37],[46,23,46,27],[46,28,46,32],[34,33,34,37],[35,33,35,37],[36,33,36,37],[37,33,37,37],[38,33,38,37],[39,33,39,37],[40,33,40,37],[41,33,41,37],[42,33,42,37],[43,33,43,37],[44,33,44,37],[45,33,45,37],[46,33,46,37],[33,3,34,22],[38,28,38,32],[42,3,42,22],[44,23,44,27],[40,23,40,27],[10,30,10,34],[17,28,17,29],[30,24,30,28],[29,16,29,20],[23,0,23,18],[28,11,28,15],[58,1,58,9],[41,3,41,22],[38,23,38,27],[39,23,39,27],[29,3,29,10],[40,28,40,32],[36,3,36,22],[37,3,37,22],[54,1,54,9],[43,3,43,22],[44,3,44,22],[38,3,38,22],[39,3,39,22],[40,3,40,22],[37,28,37,32],[29,11,29,15],[29,21,29,25],[45,3,45,22],[17,19,17,21],[12,12,12,13],[34,23,34,27],[34,28,34,32],[24,3,26,10],[24,11,26,15],[24,16,26,20],[24,21,26,25],[27,21,27,25],[17,9,17,10],[17,13,17,14],[27,11,27,15],[27,16,27,20],[28,21,28,25],[0,45,0,46],[0,42,0,44],[0,40,0,41],[0,35,0,36],[0,30,0,34],[1,30,1,34],[1,37,1,39],[1,42,1,44],[9,21,9,29],[9,30,9,34],[4,5,4,41],[0,37,0,39],[3,13,3,34],[30,44,30,48],[32,48,32,52],[30,37,30,41],[10,37,10,39],[9,45,9,46],[10,42,10,44],[9,35,9,36],[9,37,9,39],[9,40,9,41],[9,42,9,44],[44,28,44,32],[43,28,43,32],[12,1,12,11],[27,3,27,10],[28,3,28,10],[17,3,17,6],[28,16,28,20],[13,239,13,254],[13,95,13,142],[13,143,13,190],[13,191,13,238],[17,24,17,25],[13,0,13,34],[41,23,41,27],[42,23,42,27],[43,23,43,27],[39,28,39,32],[35,23,35,27],[36,23,36,27],[35,28,35,32],[36,28,36,32],[37,23,37,27],[41,28,41,32],[42,28,42,32]]}
[null,null,null,null,null,null,null,null,null,null,null,null,null,null,null,null,null,null,null,null,null,null,null,null,null,null,null,null,null,null,{"$f":"Data!$H$2","v":0},null,null,null,null,"年",null,{"$f":"Data!$N$2","v":0},null,null,"月",null,{"$f":"Data!$T$2","v":0},null,null,"日"]
[null,null,null,null,null,null,null,null,null,null,null,null,null,null,null,null,null,null,null,null,null,null,null,null,null,null,null,null,null,null,"Year",null,null,null,null,null,null,"Month",null,null,null,null,"Day"]
[]
[null,null,null,null,null,null,null,null,null,null,null,null,null,"教 育 課 程 証 明 書"]
[null,null,null,null,null,"CERTIFICATE OF CURRICULUM (Studied Subjetcs)"]
[]
[null,null,null,null,null,null,null,null,null,null,null,null,null,null,null,null,null,null,null,null,null,"氏 名",null,null,null,null,null,null,null,{"$f":"Data!$H$5","v":0}]
[null,null,null,null,null,null,null,null,null,null,null,null,null,null,null,null,null,null,null,null,null,"Name",null,null,null,null,null,null,null,{"$f":"Data!$H$4","v":0}]
[]
[null,null,null,null,null,null,null,null,null,null,null,null,null,null,null,null,null,null,null,null,null,"生 年 月 日",null,null,null,null,null,null,null,null,{"$f":"Data!$H$6","v":0},null,null,null,null,"年",null,{"$f":"Data!$N$6","v":0},null,null,"月",null,{"$f":"Data!$T$6","v":0},null,null,"日"]
[null,null,null,null,null,null,null,null,null,null,null,null,null,null,null,null,null,null,null,null,null,"Birth date",null,null,null,null,null,null,null,null,"Year",null,null,null,null,null,null,"Month",null,null,null,null,"Day"]
[]
[null,"上記のものは本校第",null,null,null,null,null,null,null,null,null,null,{"$f":"Data!$AD$10","v":0},null,"学年に在学し、次のような履修状況にあったことを証明します。"]
["This is to certify that the person whose name appears above attended",null,null,null,null,null,null,null,null,null,null,null,null,null,null,null,null,null,null,null,null,null,null,null,null,null,null,null,null,null,null,null,null,null,null,{"$f":"Data!$AD$10","v":0},null,"grade in this"]
[null,null,"school and received the following grade."]
[]
["１.在籍年月日  Period of Attendance "]
[null,null,null,{"$f":"Data!$H$8","v":0},null,null,null,"年",null,{"$f":"Data!$N$8","v":0},null,"月",null,{"$f":"Data!$T$8","v":0},null,"日",null,"～",null,{"$f":"Data!$H10","v":0},null,null,"年",null,{"$f":"Data!$N$10","v":0},null,"月",null,{"$f":"Data!$T$10","v":0},null,"日"]
[null,null,null,null,"Year",null,null,null,null,"Month",null,null,null,"Day",null,null,null,null,null,"Year",null,null,null,null,"Month",null,null,null,"Day"]
[]
[null,null,null,"日本の学校の一年間は、４月から翌年の３月までです。"]
[null,null,null,"One year of the Japanese school is from April to March of the following year."]
[]
["２.出席状況　Attendance"]
[null,null,null,null,null,null,null,null,null,null,null,"授業日数\nDays of\nschool",null,null,null,null,"出席日数\nDays\nattended",null,null,null,null,"欠席日数\nAbsent\ndays"]
[]
[]
[null,null,null,"１年 1st grade",null,null,null,null,null,null,null,{"$f":"Data!$G$25","v":0},null,null,null,null,{"$f":"Data!$G$26","v":0},null,null,null,null,{"$f":"Data!$G$27","v":0}]
[null,null,null,"２年 2nd grade",null,null,null,null,null,null,null,{"$f":"Data!$J$25","v":0},null,null,null,null,{"$f":"Data!$J$26","v":0},null,null,null,null,{"$f":"Data!$J$27","v":0}]
[null,null,null,"３年 3rd grade",null,null,null,null,null,null,null,{"$f":"Data!$M$25","v":0},null,null,null,null,{"$f":"Data!$M$26","v":0},null,null,null,null,{"$f":"Data!$M$27","v":0}]
[null,null,null,"Classes are from Monday to Friday, start at",null,null,null,null,null,null,null,null,null,null,null,null,null,null,null,null,null,null,null,null,{"$f":"学校基礎情報!$B$16","v":"00:00:00"},null,null,null,null,null,"and finish at",null,null,null,null,null,null,{"$f":"学校基礎情報!$B$17","v":"00:00:00"}]
[]
["３.教育課程　Curriculum"]
[null,null,null,"教科名 Subjetcs",null,null,null,null,null,null,null,null,null,null,null,null,null,null,null,null,null,null,null,"学年 Grade"]
[null,null,null,null,null,null,null,null,null,null,null,null,null,null,null,null,null,null,null,null,null,null,null,"1st",null,null,null,null,"2nd",null,null,null,null,"3rd"]
[null,null,null,"国語 Japanese ",null,null,null,null,null,null,null,null,null,null,null,null,null,null,null,null,null,null,null,{"$f":"学校基礎情報!B20","v":0},null,null,null,null,{"$f":"学校基礎情報!C20","v":0},null,null,null,null,{"$f":"学校基礎情報!D20","v":0}]
[null,null,null,"社会 Social Studies",null,null,null,null,null,null,null,null,null,null,null,null,null,null,null,null,null,null,null,{"$f":"学校基礎情報!B21","v":0},null,null,null,null,{"$f":"学校基礎情報!C21","v":0},null,null,null,null,{"$f":"学校基礎情報!D21","v":0}]
[null,null,null,"数学 Mathematics",null,null,null,null,null,null,null,null,null,null,null,null,null,null,null,null,null,null,null,{"$f":"学校基礎情報!B22","v":0},null,null,null,null,{"$f":"学校基礎情報!C22","v":0},null,null,null,null,{"$f":"学校基礎情報!D22","v":0}]
[null,null,null,"理科 Science",null,null,null,null,null,null,null,null,null,null,null,null,null,null,null,null,null,null,null,{"$f":"学校基礎情報!B23","v":0},null,null,null,null,{"$f":"学校基礎情報!C23","v":0},null,null,null,null,{"$f":"学校基礎情報!D23","v":0}]
[null,null,null,"音楽 Music",null,null,null,null,null,null,null,null,null,null,null,null,null,null,null,null,null,null,null,{"$f":"学校基礎情報!B24","v":0},null,null,null,null,{"$f":"学校基礎情報!C24","v":0},null,null,null,null,{"$f":"学校基礎情報!D24","v":0}]
[null,null,null,"美術 Art",null,null,null,null,null,null,null,null,null,null,null,null,null,null,null,null,null,null,null,{"$f":"学校基礎情報!B25","v":0},null,null,null,null,{"$f":"学校基礎情報!C25","v":0},null,null,null,null,{"$f":"学校基礎情報!D25","v":0}]
[null,null,null,"保健体育 Physical Education",null,null,null,null,null,null,null,null,null,null,null,null,null,null,null,null,null,null,null,{"$f":"学校基礎情報!B26","v":0},null,null,null,null,{"$f":"学校基礎情報!C26","v":0},null,null,null,null,{"$f":"学校基礎情報!D26","v":0}]
[null,null,null,"技術家庭 Technical Arts and Home Economics",null,null,null,null,null,null,null,null,null,null,null,null,null,null,null,null,null,null,null,{"$f":"学校基礎情報!B27","v":0},null,null,null,null,{"$f":"学校基礎情報!C27","v":0},null,null,null,null,{"$f":"学校基礎情報!D27","v":0}]
[null,null,null,"英語 English",null,null,null,null,null,null,null,null,null,null,null,null,null,null,null,null,null,null,null,{"$f":"学校基礎情報!B28","v":0},null,null,null,null,{"$f":"学校基礎情報!C28","v":0},null,null,null,null,{"$f":"学校基礎情報!D28","v":0}]
[null,null,null,"総合 Integrated Studies",null,null,null,null,null,null,null,null,null,null,null,null,null,null,null,null,null,null,null,{"$f":"学校基礎情報!B29","v":0},null,null,null,null,{"$f":"学校基礎情報!C29","v":0},null,null,null,null,{"$f":"学校基礎情報!D29","v":0}]
[null,null,null,"道徳  Moral Education",null,null,null,null,null,null,null,null,null,null,null,null,null,null,null,null,null,null,null,{"$f":"学校基礎情報!B30","v":0},null,null,null,null,{"$f":"学校基礎情報!C30","v":0},null,null,null,null,{"$f":"学校基礎情報!D30","v":0}]
[null,null,null,"特別活動  Special activities",null,null,null,null,null,null,null,null,null,null,null,null,null,null,null,null,null,null,null,{"$f":"学校基礎情報!B31","v":0},null,null,null,null,{"$f":"学校基礎情報!C31","v":0},null,null,null,null,{"$f":"学校基礎情報!D31","v":0}]
[null,null,null,"*","年間時数を記入 Number of classes per year",null,null,null,null,null,null,null,null,null,null,null,null,null,null,null,null,null,null,null,"年間は３５週です。There are 35 weeks per year."]
[]
[null,"学校所在地:",null,null,null,null,null,null,null,null,null,null,null,{"$f":"学校基礎情報!$B$5","v":0}]
[null,"School address:",null,null,null,null,null,null,null,null,null,null,null,{"$f":"学校基礎情報!$B$6","v":0}]
[null,null,null,null,null,null,null,null,null,null,null,null,null,{"$f":"学校基礎情報!$B$7","v":0}]
[]
[null,"学校名:",null,null,null,null,null,null,null,null,null,null,null,{"$f":"学校基礎情報!$B$2","v":0}]
[null,"School name:",null,null,null,null,null,null,null,null,null,null,null,{"$f":"学校基礎情報!$B$3","v":0}]
[null,null,null,null,null,null,null,null,null,null,null,null,null,"(Toyohashi City Municipal Junior High School)"]
[]
[null,"校長名:",null,null,null,null,null,null,null,null,null,null,null,{"$f":"学校基礎情報!$B$13","v":0},null,null,null,null,null,null,null,null,null,null,null,null,null,null,null,null,null,null,null,null,null,null,null,"公印"]
[null,"Principal name:",null,null,null,null,null,null,null,null,null,null,null,{"$f":"学校基礎情報!$B$14","v":0},null,null,null,null,null,null,null,null,null,null,null,null,null,null,null,null,null,null,null,null,null,null,null,"Official Stamp"]

{"sheet":"在証見込","index":4,"n_rows":39,"n_cols":47,"rows_kept":39,"cut":false,"hidden":false,"merged":[[8,41,8,42],[8,17,8,25],[8,30,8,35],[2,5,2,42],[8,46,8,47],[8,36,8,37],[8,38,8,40],[8,43,8,45],[12,17,12,18],[12,2,12,16],[9,30,9,35],[9,38,9,40],[1,13,1,34],[9,43,9,45],[12,19,12,45],[13,240,13,255],[14,48,14,95],[14,96,14,143],[14,144,14,191],[14,192,14,239],[14,240,14,255],[13,48,13,95],[13,96,13,143],[13,144,13,191],[13,192,13,239],[16,2,16,4],[13,29,13,31],[13,32,13,45],[13,11,13,15],[13,16,13,21],[13,27,13,28],[13,22,13,23],[13,24,13,26],[17,3,17,30],[21,38,21,40],[21,43,21,45],[20,43,20,45],[20,38,20,40],[20,32,20,35],[21,32,21,35],[20,20,20,29],[17,31,17,35],[18,31,18,35],[17,37,17,40],[18,37,18,40],[17,42,17,45],[18,42,18,45]]}
[]
[null,null,null,null,null,null,null,null,null,null,null,null,null,"在　学　証　明　書"]
[null,null,null,null,null,"CERTIFICATE OF ENROLLMENT"]
[]
[]
[null,null,null,null,null,null,null,null,null,null,null,null,null,null,null,null,null,"氏    名",null,null,null,null,null,null,null,{"$f":"Data!$H$5","v":0}]
[null,null,null,null,null,null,null,null,null,null,null,null,null,null,null,null,null,"Name",null,null,null,null,null,null,null,{"$f":"Data!$H$4","v":0}]
[]
[null,null,null,null,null,null,null,null,null,null,null,null,null,null,null,null,null,"生  年  月  日",null,null,null,null,null,null,null,null,null,null,null,null,{"$f":"Data!$H$6","v":0},null,null,null,null,null,"年",null,{"$f":"Data!$N$6","v":0},null,null,"月",null,{"$f":"Data!$T$6","v":0},null,null,"日"]
[null,null,null,null,null,null,null,null,null,null,null,null,null,null,null,null,null,"Birth date",null,null,null,null,null,null,null,null,null,null,null,null,"Year",null,null,null,null,null,null,null,"Month",null,null,null,null,"Day"]
[]
[]
[null,null,"上記の者は本校、第",null,null,null,null,null,null,null,null,null,null,null,null,null,null,{"$f":"Data!$AD$10","v":0},null,"学年に在籍していることを証明します。"]
[null,null,null,null,null,null,null,null,null,null,null,"（西暦",null,null,null,null,{"$f":"Data!$H$10","v":0},null,null,null,null,null,"年",null,{"$f":"Data!$N$10","v":0},null,null,"月",null,{"$f":"Data!$T$10","v":0},null,null,"日去校の見込み）"]
[]
[null,null,"This is to certify that the person whose name appears above has being enrolled as"]
[null,null,{"$f":"Data!$AD$10","v":0},null,null,null,"grade student in this school."]
[null,null,null,"(Expected to graduate on:  ",null,null,null,null,null,null,null,null,null,null,null,null,null,null,null,null,null,null,null,null,null,null,null,null,null,null,null,{"$f":"Data!$H$10","v":0},null,null,null,null,"/",{"$f":"Data!$N$10","v":0},null,null,null,"/",{"$f":"Data!$T$10","v":0},null,null,null,")"]
[null,null,null,null,null,null,null,null,null,null,null,null,null,null,null,null,null,null,null,null,null,null,null,null,null,null,null,null,null,null,null,"Year",null,null,null,null,null,"Month",null,null,null,null,"Day"]
[]
[null,null,null,null,null,null,null,null,null,null,null,null,null,null,null,null,null,null,null,null,"Issued Date:",null,null,null,null,null,null,null,null,null,null,null,{"$f":"Data!$H$2","v":0},null,null,null,"年",null,{"$f":"Data!$N$2","v":0},null,null,"月",null,{"$f":"Data!$T$2","v":0},null,null,"日"]
[null,null,null,null,null,null,null,null,null,null,null,null,null,null,null,null,null,null,null,null,null,null,null,null,null,null,null,null,null,null,null,null,"Year",null,null,null,null,null,"Month",null,null,null,null,"Day"]
[]
[]
[]
[]
[null,"学校所在地",null,null,null,null,null,null,null,null,null,null,null,{"$f":"学校基礎情報!$B$5","v":0}]
[null,"School address: ",null,null,null,null,null,null,null,null,null,null,null,{"$f":"学校基礎情報!$B$6","v":0}]
[null,null,null,null,null,null,null,null,null,null,null,null,null,{"$f":"学校基礎情報!$B$7","v":0}]
[]
[null,null,null,null,null,null,null,null,null,null,null,null,null,null,null,"電話",null,null,null,"Tel: ",null,null,{"$f":"学校基礎情報!$B$9","v":0}]
[null,null,null,null,null,null,null,null,null,null,null,null,null,null,null,null,null,null,null,"Fax:",null,null,{"$f":"学校基礎情報!$B$10","v":0}]
[]
[null,"学校名",null,null,null,null,null,null,null,null,null,null,null,{"$f":"学校基礎情報!$B$2","v":0}]
[null,"School name:",null,null,null,null,null,null,null,null,null,null,null,{"$f":"学校基礎情報!$B$3","v":0}]
[null,null,null,null,null,null,null,null,null,null,null,null,null,"(Toyohashi City Municipal Junior High School)"]
[]
[null,"校長名",null,null,null,null,null,null,null,null,null,null,null,{"$f":"学校基礎情報!$B$13","v":0},null,null,null,null,null,null,null,null,null,null,null,null,null,null,null,null,null,null,null,null,null,null,null,"公印"]
[null,"Principal name:",null,null,null,null,null,null,null,null,null,null,null,{"$f":"学校基礎情報!$B$14","v":0},null,null,null,null,null,null,null,null,null,null,null,null,null,null,null,null,null,null,null,null,null,null,null,"Official Stamp"]

{"sheet":"在証除後","index":5,"n_rows":41,"n_cols":47,"rows_kept":41,"cut":false,"hidden":false,"merged":[[23,46,23,47],[24,30,24,35],[24,38,24,40],[24,43,24,45],[23,30,23,35],[23,36,23,37],[23,38,23,40],[23,41,23,42],[23,43,23,45],[9,43,9,45],[12,39,12,45],[13,18,13,44],[18,11,18,13],[17,15,17,16],[17,22,17,23],[17,29,17,31],[18,29,18,31],[18,33,18,35],[17,33,17,35],[17,11,17,13],[18,24,18,27],[17,24,17,27],[12,22,12,23],[12,28,12,29],[12,24,12,27],[20,240,20,255],[20,48,20,95],[20,96,20,143],[20,144,20,191],[20,192,20,239],[2,5,2,42],[1,13,1,34],[8,46,8,47],[12,16,12,17],[12,1,12,8],[12,9,12,15],[12,18,12,21],[12,36,12,38],[8,36,8,37],[8,38,8,40],[8,41,8,42],[8,43,8,45],[8,17,8,25],[8,30,8,35],[9,30,9,35],[9,38,9,40],[23,19,23,29],[17,40,17,43],[19,9,19,44],[13,16,13,17],[13,10,13,11],[13,13,13,15],[12,31,12,33],[12,46,12,47],[12,34,12,35],[17,2,17,5],[18,2,18,5],[17,7,17,9],[18,7,18,9],[13,0,13,3],[13,4,13,5],[13,6,13,9],[17,37,17,38]]}
[]
[null,null,null,null,null,null,null,null,null,null,null,null,null,"在　学　証　明　書"]
[null,null,null,null,null,"CERTIFICATE OF ENROLLMENT"]
[]
[]
[null,null,null,null,null,null,null,null,null,null,null,null,null,null,null,null,null,"氏    名",null,null,null,null,null,null,null,null,{"$f":"Data!$H$5","v":0}]
[null,null,null,null,null,null,null,null,null,null,null,null,null,null,null,null,null,"Name",null,null,null,null,null,null,null,null,{"$f":"Data!$H$4","v":0}]
[]
[null,null,null,null,null,null,null,null,null,null,null,null,null,null,null,null,null,"生   年  月   日",null,null,null,null,null,null,null,null,null,null,null,null,{"$f":"Data!$H$6","v":0},null,null,null,null,null,"年",null,{"$f":"Data!$N$6","v":0},null,null,"月",null,{"$f":"Data!$T$6","v":0},null,null,"日"]
[null,null,null,null,null,null,null,null,null,null,null,null,null,null,null,null,null,"Birth date",null,null,null,null,null,null,null,null,null,null,null,null,"Year",null,null,null,null,null,null,null,"Month",null,null,null,null,"Day"]
[]
[]
[null,"上記の者は、",null,null,null,null,null,null,null,{"$f":"Data!$H$8","v":0},null,null,null,null,null,null,"年",null,{"$f":"Data!$N$8","v":0},null,null,null,"月",null,{"$f":"Data!$T$8","v":0},null,null,null,"日",null,"(",{"$f":"Data!$AD$8","v":0},null,null,"年）",null,"から",null,null,{"$f":"Data!$H$10","v":0},null,null,null,null,null,null,"年"]
[{"$f":"Data!$N$10","v":0},null,null,null,"月",null,{"$f":"Data!$T$10","v":0},null,null,null,"日",null,"(",{"$f":"Data!$AD$10","v":0},null,null,"年）",null,"まで本校に在籍していたことを証明します。"]
[]
[null,"This is to certify that the person whose name appears above was enrolled at this school from"]
[]
[null,null,{"$f":"Data!$H$8","v":0},null,null,null,null,{"$f":"Data!$N$8","v":0},null,null,null,{"$f":"Data!$T$8","v":0},null,null,"(",{"$f":"Data!$AD$8","v":0},null,null,"grade)",null,null,null,"to",null,{"$f":"Data!$H$10","v":0},null,null,null,null,{"$f":"Data!$N$10","v":0},null,null,null,{"$f":"Data!$T$10","v":0},null,null,"(",{"$f":"Data!$AD$10","v":0},null,null,"grade) ",null,null,null,"."]
[null,null,"Year",null,null,null,null,"Month",null,null,null,"Day",null,null,null,null,null,null,null,null,null,null,null,null,"Year",null,null,null,null,"Month",null,null,null,"Day"]
[]
[]
[]
[]
[null,null,null,null,null,null,null,null,null,null,null,null,null,null,null,null,null,null,null,"Issued Date:",null,null,null,null,null,null,null,null,null,null,{"$f":"Data!$H$2","v":0},null,null,null,null,null,"年",null,{"$f":"Data!$N$2","v":0},null,null,"月",null,{"$f":"Data!$T$2","v":0},null,null,"日"]
[null,null,null,null,null,null,null,null,null,null,null,null,null,null,null,null,null,null,null,null,null,null,null,null,null,null,null,null,null,null,"Year",null,null,null,null,null,null,null,"Month",null,null,null,null,"Day"]
[]
[]
[]
[null,"学校所在地",null,null,null,null,null,null,null,null,null,null,null,{"$f":"学校基礎情報!$B$5","v":0}]
[null,"School address:",null,null,null,null,null,null,null,null,null,null,null,{"$f":"学校基礎情報!$B$6","v":0}]
[null,null,null,null,null,null,null,null,null,null,null,null,null,{"$f":"学校基礎情報!$B$7","v":0}]
[]
[null,null,null,null,null,null,null,null,null,null,null,null,null,null,null,"電話",null,null,null,"Tel： ",null,null,null,null,{"$f":"学校基礎情報!$B$9","v":0}]
[null,null,null,null,null,null,null,null,null,null,null,null,null,null,null,null,null,null,null,"FAX:",null,null,null,null,{"$f":"学校基礎情報!$B$10","v":0}]
[]
[null,"学校名",null,null,null,null,null,null,null,null,null,null,null,{"$f":"学校基礎情報!$B$2","v":0}]
[null,"School name:",null,null,null,null,null,null,null,null,null,null,null,{"$f":"学校基礎情報!$B$3","v":0}]
[null,null,null,null,null,null,null,null,null,null,null,null,null,"(Toyohashi City Municipal Junior High School)"]
[]
[null,"校長名",null,null,null,null,null,null,null,null,null,null,null,{"$f":"学校基礎情報!$B$13","v":0},null,null,null,null,null,null,null,null,null,null,null,null,null,null,null,null,null,null,null,null,null,null,null,null,"公印"]
[null,"Principal name:",null,null,null,null,null,null,null,null,null,null,null,{"$f":"学校基礎情報!$B$14","v":0},null,null,null,null,null,null,null,null,null,null,null,null,null,null,null,null,null,null,null,null,null,null,null,null,"Official Stamp"]

{"sheet":"卒証","index":6,"n_rows":43,"n_cols":41,"rows_kept":43,"cut":false,"hidden":false,"merged":[[33,1,33,6],[13,26,13,29],[30,33,30,35],[30,37,30,39],[23,6,23,8],[22,1,22,4],[23,1,23,4],[22,6,22,8],[29,33,29,34],[29,27,29,30],[30,27,30,31],[23,10,23,12],[3,0,3,40],[4,0,4,40],[12,26,12,29],[29,35,29,36],[29,39,29,40],[18,12,18,15],[18,18,18,20],[18,23,18,25],[29,37,29,38],[12,32,12,34],[13,32,13,34],[12,37,12,39],[13,37,13,39],[22,32,22,33],[29,31,29,32],[22,10,22,12]]}
[]
[]
[]
["卒業証明書"]
["GRADUATION CERTIFICATE (DIPLOMA)"]
[]
[]
[]
[null,null,null,null,null,null,null,null,null,null,null,null,null,null,null,"氏　名:",null,null,null,null,null,null,null,{"$f":"Data!$H$5","v":0}]
[null,null,null,null,null,null,null,null,null,null,null,null,null,null,null,"Name",null,null,null,null,null,null,null,{"$f":"Data!$H$4","v":0}]
[]
[]
[null,null,null,null,null,null,null,null,null,null,null,null,null,null,null,"生　年　月　日:",null,null,null,null,null,null,null,null,null,null,{"$f":"Data!$H$6","v":0},null,null,null,"年",null,{"$f":"Data!$N$6","v":0},null,null,"月",null,{"$f":"Data!$T$6","v":0},null,null,"日"]
[null,null,null,null,null,null,null,null,null,null,null,null,null,null,null,"Birth date",null,null,null,null,null,null,null,null,null,null,"Year",null,null,null,null,null,"Month",null,null,null,null,"Day"]
[]
[]
[]
[]
[null,"上記のものは本校を",null,null,null,null,null,null,null,null,null,null,{"$f":"Data!$H$11","v":0},null,null,null,"年",null,{"$f":"Data!$N$11","v":0},null,null,"月",null,{"$f":"Data!$T$11","v":0},null,null,"日",null,"に卒業したことを証明します。"]
[]
[null,"This is to certify that the student whose name appears above graduated this school in"]
[]
[null,{"$f":"Data!$H$11","v":0},null,null,null,"/",{"$f":"Data!$N$11","v":0},null,null,"/",{"$f":"Data!$T$11","v":0},null,null,"."]
[null,"Year",null,null,null,null,"Month",null,null,null,"Day"]
[]
[]
[]
[]
[]
[null,null,null,null,null,null,null,null,null,null,null,null,null,null,null,null,null,null,null,null,"Issued Date:",null,null,null,null,null,null,{"$f":"Data!$H$2","v":0},null,null,null,"年",null,{"$f":"Data!$N$2","v":0},null,"月",null,{"$f":"Data!$T$2","v":0},null,"日"]
[null,null,null,null,null,null,null,null,null,null,null,null,null,null,null,null,null,null,null,null,null,null,null,null,null,null,null,"Year",null,null,null,null,null,"Month",null,null,null,"Day"]
[]
[]
[null,"学校所在地",null,null,null,null,null,null,null,null,null,null,{"$f":"学校基礎情報!$B$5","v":0}]
[null,"School address:",null,null,null,null,null,null,null,null,null,null,{"$f":"学校基礎情報!$B$6","v":0}]
[null,null,null,null,null,null,null,null,null,null,null,null,{"$f":"学校基礎情報!$B$7","v":0}]
[]
[null,"学校名",null,null,null,null,null,null,null,null,null,null,{"$f":"学校基礎情報!$B$2","v":0}]
[null,"School name:",null,null,null,null,null,null,null,null,null,null,{"$f":"学校基礎情報!$B$3","v":0}]
[null,null,null,null,null,null,null,null,null,null,null,null,"(Toyohashi City Municipal Junior High School)"]
[]
[null,"学校長",null,null,null,null,null,null,null,null,null,null,{"$f":"学校基礎情報!$B$13","v":0},null,null,null,null,null,null,null,null,null,null,null,null,null,null,null,null,null,null,null,null,null,"公印"]
[null,"Principal name:",null,null,null,null,null,null,null,null,null,null,{"$f":"学校基礎情報!$B$14","v":0},null,null,null,null,null,null,null,null,null,null,null,null,null,null,null,null,null,null,null,null,null,"Official Stamp"]

{"sheet":"公印 ","index":7,"n_rows":61,"n_cols":43,"rows_kept":61,"cut":false,"hidden":false,"merged":[[60,21,62,23],[60,28,62,30],[31,37,31,40],[47,40,50,40],[51,22,53,27],[51,32,51,40],[53,32,53,40],[55,21,57,40],[37,21,53,21],[37,31,37,35],[37,36,37,39],[38,33,38,39],[39,33,39,39],[40,33,40,39],[41,23,41,29],[41,33,41,39],[43,22,46,27],[43,28,46,40],[47,22,50,27],[47,28,50,33],[47,34,50,34],[47,35,50,36],[47,37,50,37],[47,38,50,39],[26,21,36,21],[29,35,29,39],[30,37,30,39],[33,35,33,39],[35,33,35,39],[11,21,13,40],[14,21,16,40],[17,21,20,25],[17,26,19,40],[21,21,24,22],[21,29,24,30],[22,23,23,28],[7,26,10,34],[7,35,7,40],[8,35,8,40],[9,21,10,25],[9,35,10,40],[1,42,2,48],[21,8,24,9],[22,2,23,7],[31,16,31,18],[37,0,53,0],[47,7,50,12],[47,17,50,18],[47,19,50,19],[51,1,53,6],[51,11,51,19],[53,11,53,19],[14,0,16,19],[0,21,1,40],[2,21,2,40],[3,21,3,40],[7,21,8,25],[17,0,20,4],[17,5,19,19],[21,0,24,1],[11,0,13,19],[0,0,1,19],[2,0,2,19],[3,0,3,19],[7,0,8,4],[7,5,10,13],[7,14,7,19],[8,14,8,19],[9,0,10,4],[9,14,10,19],[26,0,36,0],[29,14,29,18],[30,16,30,18],[33,14,33,18],[35,12,35,18],[37,10,37,14],[43,1,46,6],[43,7,46,19],[37,15,37,18],[38,12,38,18],[39,12,39,18],[40,12,40,18],[41,2,41,8],[41,12,41,18],[60,0,62,2],[60,7,62,9],[47,13,50,13],[47,14,50,15],[47,16,50,16],[55,0,57,19],[47,1,50,6]]}
["公 印 確 認 申 請 書",null,null,null,null,null,null,null,null,null,null,null,null,null,null,null,null,null,null,null,null,"公 印 確 認 申 請 書"]
[null,null,null,null,null,null,null,null,null,null,null,null,null,null,null,null,null,null,null,null,null,null,null,null,null,null,null,null,null,null,null,null,null,null,null,null,null,null,null,null,null,null,"外務省  公印確認申請書（AUTHENTICATION）参照"]
["APPLICATION FORM FOR AUTHENTICATION",null,null,null,null,null,null,null,null,null,null,null,null,null,null,null,null,null,null,null,null,"APPLICATION FORM FOR AUTHENTICATION"]
["OF OFFICIAL SEAL(S)",null,null,null,null,null,null,null,null,null,null,null,null,null,null,null,null,null,null,null,null,"OF OFFICIAL SEAL(S)",null,null,null,null,null,null,null,null,null,null,null,null,null,null,null,null,null,null,null,null,"https://www.mofa.go.jp/mofaj/toko/page22_000550.html"]
[]
[null,null,null,null,null,null,null,null,null,null,null,null,null,"令和",null,"年",null,"月",null,"日",null,null,null,null,null,null,null,null,null,null,null,null,null,null,"令和",null,"年",null,"月",null,"日"]
[null,null,null,null,null,null,null,null,null,null,null,null,null,"Date :",null,"Year",null,"Month",null,"Day",null,null,null,null,null,null,null,null,null,null,null,null,null,null,"Date :",null,"Year",null,"Month",null,"Day"]
["Ⓐあなたの氏名 Applicant's name",null,null,null,null,"　",null,null,null,null,null,null,null,null,"電話番号（携帯）",null,null,null,null,null,null,"Ⓐあなたの氏名 Applicant's name",null,null,null,null,"記入している人の名前",null,null,null,null,null,null,null,null,"電話番号（携帯）"]
[null,null,null,null,null,null,null,null,null,null,null,null,null,null,"Telephone number(Mobile)：",null,null,null,null,null,null,null,null,null,null,null,null,null,null,null,null,null,null,null,null,"Telephone number(Mobile)："]
["（社名　Company)",null,null,null,null,null,null,null,null,null,null,null,null,null,{"$f":"学校基礎情報!$B9","v":0},null,null,null,null,null,null,"（社名　Company)",null,null,null,null,null,null,null,null,null,null,null,null,null,"昼間に連絡がとれる番号"]
[]
["証明書を必要としている方（Ⓑ）との関係 Relationship with Ⓑ\n本人 Self　　　　　　代理人（業務・個人）Representative (Business / Personal)（※）",null,null,null,null,null,null,null,null,null,null,null,null,null,null,null,null,null,null,null,null,"証明書を必要としている方（Ⓑ）との関係 Relationship with Ⓑ\n本人 Self　　　　　　代理人（業務・個人）Representative (Business / Personal)（※）"]
[]
[]
["（※）代理人による申請の場合は委任状が必要です。\n If you are representative(Business/Personal), please attach/enclose the power of attorney. ",null,null,null,null,null,null,null,null,null,null,null,null,null,null,null,null,null,null,null,null,"（※）代理人による申請の場合は委任状が必要です。\n If you are representative(Business/Personal), please attach/enclose the power of attorney. "]
[]
[]
["Ⓑ証明書を必要としている方\nName of person/company\n who need the attached document",null,null,null,null,{"$f":"Data!$H4","v":0},null,null,null,null,null,null,null,null,null,null,null,null,null,null,null,"Ⓑ証明書を必要としている方\nName of person/company\n who need the attached document",null,null,null,null,"児童生徒名"]
[]
[]
[null,null,null,null,null,"Ⓐ と同じ場合は記入不要です。 If same as Ⓐ, you do not have to fill out.",null,null,null,null,null,null,null,null,null,null,null,null,null,null,null,null,null,null,null,null,"Ⓐ と同じ場合は記入不要です。 If same as Ⓐ, you do not have to fill out."]
["提出先国名\nCountry to submit",null,null,null,null,null,null,null,"使用目的\nPurpose of use",null,"□就学（留学）（Study abroad）",null,null,null,null,"□就職（Enter employment）",null,null,null,null,null,"提出先国名\nCountry to submit",null,null,null,null,null,null,null,"使用目的\nPurpose of use",null,"□就学（留学）（Study abroad）",null,null,null,null,"□就職（Enter employment）"]
[null,null,{"$f":"Data!$H3","v":0},null,null,null,null,null,null,null,"□査証申請（Visa application）",null,null,null,null,"□出生（Birth ）",null,null,null,null,null,null,null,"提出国名",null,null,null,null,null,null,null,"□査証申請（Visa application）",null,null,null,null,"□出生（Birth ）"]
[null,null,null,null,null,null,null,null,null,null,"□結婚（Marriage）",null,null,null,null,"□離婚（Divorce）",null,null,null,null,null,null,null,null,null,null,null,null,null,null,null,"□結婚（Marriage）",null,null,null,null,"□離婚（Divorce）"]
[null,null,"在本邦大使館・領事館 Embassy / Consulate　in Japan",null,null,null,null,null,null,null,"□その他（Others）（　　　　　　　　　　　　　　　　　　　　　　　　　）",null,null,null,null,null,null,null,null,null,null,null,null,"在本邦大使館・領事館 Embassy / Consulate　in Japan",null,null,null,null,null,null,null,"□その他（Others）（　　　　　　　　　　　　　　　　　　　　　　　　　）"]
[]
["書　　　類",null,null,null,null,null,null,null,null,null,null,null,null,null,null,null,null,null,null,null,null,"書　　　類"]
[null,"★申請公印確認が必要な書類（添付される書類）の番号に○をつけて下さい。",null,null,null,null,null,null,null,null,null,null,null,null,null,null,null,null,null,null,null,null,"★申請公印確認が必要な書類（添付される書類）の番号に○をつけて下さい。"]
[null,"Please circle the corresponding number of the　document(s) you attached for the authentication.",null,null,null,null,null,null,null,null,null,null,null,null,null,null,null,null,null,null,null,null,"Please circle the corresponding number of the　document(s) you attached for the authentication."]
[null,"１","婚姻要件具備証明書",null,null,null,null,null,null,"７","戸籍謄(抄)本",null,null,null,null,null,null,null,null,null,null,null,"１","婚姻要件具備証明書",null,null,null,null,null,null,"７","戸籍謄(抄)本"]
[null,null,"　Certificate(s) of eligibility for marriage",null,null,null,null,null,null,null,"　Family register(s) （Head of family:",null,null,null,null,null,null,null,null,"）",null,null,null,"　Certificate(s) of eligibility for marriage",null,null,null,null,null,null,null,"　Family register(s) （Head of family:",null,null,null,null,null,null,null,null,"）"]
[null,"２","公証人認証書",null,null,null,null,null,null,"８","学校関係（卒業・修了・成績・その他：",null,null,null,null,null,null,null,null,"）",null,null,"２","公証人認証書",null,null,null,null,null,null,"８","学校関係（卒業・修了・成績・その他：",null,null,null,null,null,"教育課程証明書・在籍証明書　　　）"]
[null,null,"　Notarial document(s)",null,null,null,null,null,null,null,"　Education document(s)（Graduation/Completion/",null,null,null,null,null,null,null,null,null,null,null,null,"　Notarial document(s)",null,null,null,null,null,null,null,"　Education document(s)（Graduation/Completion/"]
[null,"３","医療医薬機器製造",null,null,null,null,null,null,null,"　Transcript(s)/Others:",null,null,null,null,null,null,null,null,"）",null,null,"３","医療医薬機器製造",null,null,null,null,null,null,null,"　Transcript(s)/Others:",null,null,null,null,null,null,null,null,"）"]
[null,null,"　Medical and pharmaceutical document(s)",null,null,null,null,null,null,"９","受理・記載事項証明（出生・婚姻・離婚・死亡・住民票・",null,null,null,null,null,null,null,null,null,null,null,null,"　Medical and pharmaceutical document(s)",null,null,null,null,null,null,"９","受理・記載事項証明（出生・婚姻・離婚・死亡・住民票・"]
[null,"４","警察証明",null,null,null,null,null,null,null,"その他：",null,null,null,null,null,null,null,null,"）",null,null,"４","警察証明",null,null,null,null,null,null,null,"その他：",null,null,null,null,null,null,null,null,"）"]
[null,null,"　Criminal record(s)",null,null,null,null,null,null,null,"　Civil status document(s) （Birth / Marriage / Divorce / ",null,null,null,null,null,null,null,null,null,null,null,null,"　Criminal record(s)",null,null,null,null,null,null,null,"　Civil status document(s) （Birth / Marriage / Divorce / "]
["       Document(s)","５","健康診断書",null,null,null,null,null,null,null,"　Death / Residence / Others: ",null,null,null,null,null,null,null,null,"）",null,"       Document(s)","５","健康診断書",null,null,null,null,null,null,null,"　Death / Residence / Others: ",null,null,null,null,null,null,null,null,"）"]
[null,null,"　Medical certificate(s)",null,null,null,null,null,null,"１０","その他（",null,null,null,null,null,null,null,null,"）",null,null,null,"　Medical certificate(s)",null,null,null,null,null,null,"１０","その他（",null,null,null,null,null,null,null,null,"）"]
[null,"６","登記事項証明",null,null,null,null,null,null,null,"　Others（",null,null,null,null,null,null,null,null,"）",null,null,"６","登記事項証明",null,null,null,null,null,null,null,"　Others（",null,null,null,null,null,null,null,null,"）"]
[null,null,"　Extracts from commercial registers",null,null,null,null,null,null,null,null,null,null,null,null,null,null,null,null,null,null,null,null,"　Extracts from commercial registers"]
[]
[]
[null,"書類の発行者の肩書き（公印名）\nNameCapacity of official seal",null,null,null,null,null,{"$f":"学校基礎情報!$B2","v":0},null,null,null,null,null,null,null,null,null,null,null,null,null,null,"書類の発行者の肩書き（公印名）\nNameCapacity of official seal"]
[]
[]
[]
[null,"発行年月日\nDate of issue ",null,null,null,null,null,{"$f":"Data!$H2","v":0},null,null,null,null,null,"年\nYear",{"$f":"Data!$N2","v":0},null,"月\nMonth",{"$f":"Data!$T2","v":0},null,"日\nDay",null,null,"発行年月日\nDate of issue ",null,null,null,null,null,null,null,null,null,null,null,"年\nYear",null,null,"月\nMonth",null,null,"日\nDay"]
[]
[]
[]
[null,"申請通数\nNumber of  documents",null,null,null,null,null,"□１通(One Document)",null,null,null,"□(同一書類が)4通以上(　　　通。理由(reason)　　　　　　　)",null,null,null,null,null,null,null,null,null,null,"申請通数\nNumber of  documents",null,null,null,null,null,"□１通(One Document)",null,null,null,"□(同一書類が)4通以上(　　　通。理由(reason)　　　　　　　)"]
[null,null,null,null,null,null,null,"□2通(Two Documents)",null,null,null,"※同一の証明書を4枚以上申請をする場合は、理由(提出先等)を記載してください。",null,null,null,null,null,null,null,null,null,null,null,null,null,null,null,null,"□2通(Two Documents)",null,null,null,"※同一の証明書を4枚以上申請をする場合は、理由(提出先等)を記載してください。"]
[null,null,null,null,null,null,null,"□3通(Three Documents)",null,null,null,"If you are applying for more than four, please provide the reason (e.g., where to submit it).",null,null,null,null,null,null,null,null,null,null,null,null,null,null,null,null,"□3通(Three Documents)",null,null,null,"If you are applying for more than four, please provide the reason (e.g., where to submit it)."]
[]
["（注１）公印確認は、日本にある外国の大使館（領事館）が領事認証を付与するために必要とされるものですので、求めがある場合のみ申請できます。 You can apply for authentication of official seal(s)  only for legalization by the foreign consul in Japan.\n（注２）同一書類の申請が４通以上で理由がない場合、３通を上限として交付いたしますので、予め御了承ください。場合によっては､提出先からの要求文書を提出して頂く可能性があります。Please note that if there is no reason to apply more than four,  only three documents will be processed. In some cases, you may be asked to provide the written request documents by the party to submit.",null,null,null,null,null,null,null,null,null,null,null,null,null,null,null,null,null,null,null,null,"（注１）公印確認は、日本にある外国の大使館（領事館）が領事認証を付与するために必要とされるものですので、求めがある場合のみ申請できます。 You can apply for authentication of official seal(s)  only for legalization by the foreign consul in Japan.\n（注２）同一書類の申請が４通以上で理由がない場合、３通を上限として交付いたしますので、予め御了承ください。場合によっては､提出先からの要求文書を提出して頂く可能性があります。Please note that if there is no reason to apply more than four,  only three documents will be processed. In some cases, you may be asked to provide the written request documents by the party to submit."]
[]
[]
[]
["※外務省使用欄　Official use only",null,null,null,null,null,null,null,null,null,null,null,null,null,null,null,null,null,null,null,null,"※外務省使用欄　Official use only"]
["証明日付",null,null,null,null,null,null,"受理番号",null,null,null,null,null,null,null,null,null,null,null,null,null,"証明日付",null,null,null,null,null,null,"受理番号"]

{"sheet":"アポスティーユ","index":8,"n_rows":67,"n_cols":43,"rows_kept":67,"cut":false,"hidden":false,"merged":[[1,42,2,48],[56,22,58,27],[58,32,58,40],[59,21,61,40],[53,35,55,36],[53,37,55,37],[53,38,55,39],[53,40,55,40],[42,36,42,39],[43,33,43,39],[22,21,25,25],[22,26,24,40],[26,21,29,22],[26,23,29,27],[26,28,29,30],[31,21,43,21],[64,21,65,23],[64,32,68,34],[66,21,68,23],[53,28,55,33],[53,34,55,34],[44,21,58,21],[44,33,44,39],[45,33,45,39],[47,22,49,27],[47,28,49,40],[50,22,52,27],[50,28,52,40],[53,22,55,27],[36,37,36,40],[4,21,5,40],[6,21,7,40],[8,21,8,40],[12,21,13,25],[12,26,15,34],[12,35,12,40],[13,35,13,40],[14,21,15,25],[14,35,15,40],[16,21,18,40],[19,21,20,40],[34,35,34,39],[35,37,35,39],[38,35,38,39],[53,17,55,18],[53,19,55,19],[56,1,58,6],[58,11,58,19],[43,12,43,18],[44,12,44,18],[45,12,45,18],[38,14,38,18],[40,12,40,18],[42,10,42,14],[42,15,42,18],[40,33,40,39],[42,31,42,35],[59,0,61,19],[64,0,65,2],[64,11,68,13],[66,0,68,2],[26,7,29,9],[36,16,36,18],[44,0,58,0],[47,1,49,6],[47,7,49,19],[50,1,52,6],[50,7,52,19],[53,1,55,6],[53,7,55,12],[53,13,55,13],[53,14,55,15],[53,16,55,16],[31,0,43,0],[34,14,34,18],[35,16,35,18],[22,0,25,4],[22,5,24,19],[26,0,29,1],[26,2,29,6],[4,0,5,19],[6,0,7,19],[8,0,8,19],[16,0,18,19],[19,0,20,19],[12,0,13,4],[12,5,15,13],[12,14,12,19],[13,14,13,19],[14,0,15,4],[14,14,15,19]]}
[]
[null,null,null,null,null,null,null,null,null,null,null,null,null,null,null,null,null,null,null,null,null,null,null,null,null,null,null,null,null,null,null,null,null,null,null,null,null,null,null,null,null,null,"外務省　「アポスティーユ申請書（APOSTILLE）」参照"]
[]
[null,null,null,null,null,null,null,null,null,null,null,null,null,null,null,null,null,null,null,null,null,null,null,null,null,null,null,null,null,null,null,null,null,null,null,null,null,null,null,null,null,null,"https://www.mofa.go.jp/mofaj/toko/page22_000550.html"]
["アポスティーユ申請書",null,null,null,null,null,null,null,null,null,null,null,null,null,null,null,null,null,null,null,null,"アポスティーユ申請書"]
[]
["APPLICATION FORM FOR APOSTILLE",null,null,null,null,null,null,null,null,null,null,null,null,null,null,null,null,null,null,null,null,"APPLICATION FORM FOR APOSTILLE"]
[]
["「外国公文書の認証を不要とする条約（ハーグ条約）」  ",null,null,null,null,null,null,null,null,null,null,null,null,null,null,null,null,null,null,null,null,"「外国公文書の認証を不要とする条約（ハーグ条約）」  "]
[]
[null,null,null,null,null,null,null,null,null,null,null,null,null,"令和",null,"年",null,"月",null,"日",null,null,null,null,null,null,null,null,null,null,null,null,null,null,"令和",null,"年",null,"月",null,"日"]
[null,null,null,null,null,null,null,null,null,null,null,null,null,"Date :",null,"Year",null,"Month",null,"Day",null,null,null,null,null,null,null,null,null,null,null,null,null,null,"Date :",null,"Year",null,"Month",null,"Day"]
["Ⓐあなたの氏名 Applicant's name",null,null,null,null,null,null,null,null,null,null,null,null,null,"電話番号（携帯）",null,null,null,null,null,null,"Ⓐあなたの氏名 Applicant's name",null,null,null,null,"記入している方の名前",null,null,null,null,null,null,null,null,"電話番号（携帯）"]
[null,null,null,null,null,null,null,null,null,null,null,null,null,null,"Telephone number(Mobile)：",null,null,null,null,null,null,null,null,null,null,null,null,null,null,null,null,null,null,null,null,"Telephone number(Mobile)："]
["（社名　Company)",null,null,null,null,null,null,null,null,null,null,null,null,null,{"$f":"学校基礎情報!$B9","v":0},null,null,null,null,null,null,"（社名　Company)",null,null,null,null,null,null,null,null,null,null,null,null,null,"昼間に連絡がとれる番号"]
[]
["証明書を必要としている方（Ⓑ）との関係 Relationship with Ⓑ\n本人 Self　　　　　　代理人（業務・個人）Representative (Business / Personal)（※）",null,null,null,null,null,null,null,null,null,null,null,null,null,null,null,null,null,null,null,null,"証明書を必要としている方（Ⓑ）との関係 Relationship with Ⓑ\n本人 Self　　　　　　代理人（業務・個人）Representative (Business / Personal)（※）"]
[]
[]
["（※）代理人による申請の場合は委任状が必要です。 If you are representative(Business/Personal), please attach/enclose the power of attorney. ",null,null,null,null,null,null,null,null,null,null,null,null,null,null,null,null,null,null,null,null,"（※）代理人による申請の場合は委任状が必要です。 If you are representative(Business/Personal), please attach/enclose the power of attorney. "]
[]
[]
["Ⓑ証明書を必要としている方\nName of person/company\n who need the attached document",null,null,null,null,{"$f":"Data!$H4","v":0},null,null,null,null,null,null,null,null,null,null,null,null,null,null,null,"Ⓑ証明書を必要としている方\nName of person/company\n who need the attached document",null,null,null,null,"児童生徒名"]
[]
[]
[null,null,null,null,null,"Ⓐ と同じ場合は記入不要です。 If the same as Ⓐ , you do not have to fill out.",null,null,null,null,null,null,null,null,null,null,null,null,null,null,null,null,null,null,null,null,"Ⓐ と同じ場合は記入不要です。 If the same as Ⓐ , you do not have to fill out."]
["提出先国名\nCountry to submit",null,{"$f":"Data!$H3","v":0},null,null,null,null,"使用目的\nPurpose of use",null,null,"□就学（留学）（Study abroad）",null,null,null,null,"□就職（Enter employment）",null,null,null,null,null,"提出先国名\nCountry to submit",null,"提出国名",null,null,null,null,"使用目的\nPurpose of use",null,null,"□就学（留学）（Study abroad）",null,null,null,null,"□就職（Enter employment）"]
[null,null,null,null,null,null,null,null,null,null,"□査証申請（Visa application）",null,null,null,null,"□出生（Birth ）",null,null,null,null,null,null,null,null,null,null,null,null,null,null,null,"□査証申請（Visa application）",null,null,null,null,"□出生（Birth ）"]
[null,null,null,null,null,null,null,null,null,null,"□結婚（Marriage）",null,null,null,null,"□離婚（Divorce）",null,null,null,null,null,null,null,null,null,null,null,null,null,null,null,"□結婚（Marriage）",null,null,null,null,"□離婚（Divorce）"]
[null,null,null,null,null,null,null,null,null,null,"□その他（Others）（　　　　　　　　　　　　　　　　　　　　　　　　　）",null,null,null,null,null,null,null,null,null,null,null,null,null,null,null,null,null,null,null,null,"□その他（Others）（　　　　　　　　　　　　　　　　　　　　　　　　　）"]
[]
["書　　　類",null,null,null,null,null,null,null,null,null,null,null,null,null,null,null,null,null,null,null,null,"書　　　類"]
[null,"★申請アポスティーユが必要な書類（添付される書類）の番号に○をつけて下さい。",null,null,null,null,null,null,null,null,null,null,null,null,null,null,null,null,null,null,null,null,"★申請アポスティーユが必要な書類（添付される書類）の番号に○をつけて下さい。"]
[null,"Please circle the corresponding number of the　document(s) you attached for the apostille.",null,null,null,null,null,null,null,null,null,null,null,null,null,null,null,null,null,null,null,null,"Please circle the corresponding number of the　document(s) you attached for the apostille."]
[null,"１","婚姻要件具備証明書",null,null,null,null,null,null,"７","戸籍謄(抄)本",null,null,null,null,null,null,null,null,null,null,null,"１","婚姻要件具備証明書",null,null,null,null,null,null,"７","戸籍謄(抄)本"]
[null,null,"　Certificate(s) of eligibility for marriage",null,null,null,null,null,null,null,"　Family register(s) （Head of family:",null,null,null,null,null,null,null,null,"）",null,null,null,"　Certificate(s) of eligibility for marriage",null,null,null,null,null,null,null,"　Family register(s) （Head of family:",null,null,null,null,null,null,null,null,"）"]
[null,"２","公証人認証書",null,null,null,null,null,null,"８","学校関係（卒業・修了・成績・その他：",null,null,null,null,null,null,null,null,"）",null,null,"２","公証人認証書",null,null,null,null,null,null,"８","学校関係（卒業・修了・成績・その他：",null,null,null,null,null,"教育課程証明書・在籍証明書）"]
[null,null,"　Notarial document(s)",null,null,null,null,null,null,null,"　Education document(s)（Graduation/Completion/",null,null,null,null,null,null,null,null,null,null,null,null,"　Notarial document(s)",null,null,null,null,null,null,null,"　Education document(s)（Graduation/Completion/"]
[null,"３","医療医薬機器製造",null,null,null,null,null,null,null,"　Transcript(s)/Others:",null,null,null,null,null,null,null,null,"）",null,null,"３","医療医薬機器製造",null,null,null,null,null,null,null,"　Transcript(s)/Others:",null,null,null,null,null,null,null,null,"）"]
[null,null,"　Medical and pharmaceutical document(s)",null,null,null,null,null,null,"９","受理・記載事項証明（出生・婚姻・離婚・死亡・住民票・",null,null,null,null,null,null,null,null,null,null,null,null,"　Medical and pharmaceutical document(s)",null,null,null,null,null,null,"９","受理・記載事項証明（出生・婚姻・離婚・死亡・住民票・"]
[null,"４","警察証明",null,null,null,null,null,null,null,"その他：",null,null,null,null,null,null,null,null,"）",null,null,"４","警察証明",null,null,null,null,null,null,null,"その他：",null,null,null,null,null,null,null,null,"）"]
[null,null,"　Criminal record(s)",null,null,null,null,null,null,null,"　Civil status document(s) （Birth / Marriage / Divorce / ",null,null,null,null,null,null,null,null,null,null,null,null,"　Criminal record(s)",null,null,null,null,null,null,null,"　Civil status document(s) （Birth / Marriage / Divorce / "]
[null,"５","健康診断書",null,null,null,null,null,null,null,"　Death / Residence / Others: ",null,null,null,null,null,null,null,null,"）",null,null,"５","健康診断書",null,null,null,null,null,null,null,"　Death / Residence / Others: ",null,null,null,null,null,null,null,null,"）"]
[null,null,"　Medical certificate(s)",null,null,null,null,null,null,"１０","その他（",null,null,null,null,null,null,null,null,"）",null,null,null,"　Medical certificate(s)",null,null,null,null,null,null,"１０","その他（",null,null,null,null,null,null,null,null,"）"]
["       Document(s)","６","登記事項証明",null,null,null,null,null,null,null,"　Others（",null,null,null,null,null,null,null,null,"）",null,"       Document(s)","６","登記事項証明",null,null,null,null,null,null,null,"　Others（",null,null,null,null,null,null,null,null,"）"]
[null,null,"　Extracts from commercial registers",null,null,null,null,null,null,null,null,null,null,null,null,null,null,null,null,null,null,null,null,"　Extracts from commercial registers"]
[]
[null,"書類の発行者の肩書き（公印名）\nNameCapacity of official seal",null,null,null,null,null,{"$f":"学校基礎情報!$B2","v":0},null,null,null,null,null,null,null,null,null,null,null,null,null,null,"書類の発行者の肩書き（公印名）\nNameCapacity of official seal",null,null,null,null,null,"学校名"]
[]
[]
[null,"発行者氏名\nName of the person signing \nthe document(s)",null,null,null,null,null,{"$f":"学校基礎情報!$B13","v":0},null,null,null,null,null,null,null,null,null,null,null,null,null,null,"発行者氏名\nName of the person signing \nthe document(s)",null,null,null,null,null,"学校長名"]
[]
[]
[null,"発行年月日\nDate of  issue ",null,null,null,null,null,{"$f":"Data!$H2","v":0},null,{"$f":"Data!$H1","v":0},null,{"$f":"Data!$H1","v":0},null,"年\nYear",{"$f":"Data!$N2","v":0},{"$f":"Data!$N1","v":0},"月\nMonth",{"$f":"Data!$T2","v":0},{"$f":"Data!$T1","v":0},"日\nDay",null,null,"発行年月日\nDate of  issue ",null,null,null,null,null,null,null,{"$f":"Data!$H1","v":0},null,{"$f":"Data!$H1","v":0},null,"年\nYear",null,{"$f":"Data!$N1","v":0},"月\nMonth",null,{"$f":"Data!$T1","v":0},"日\nDay"]
[]
[]
[null,"申請通数\nNumber of documents",null,null,null,null,null,"□１通(One Document)",null,null,null,"□(同一書類が)4通以上(　　　通。理由(reason)　　　　　  　)  ",null,null,null,null,null,null,null,null,null,null,"申請通数\nNumber of documents",null,null,null,null,null,"□１通(One Document)",null,null,null,"□(同一書類が)4通以上(　　　通。理由(reason)　　　　　  　)  "]
[null,null,null,null,null,null,null,"□2通(Two Documents)",null,null,null,"※同一の証明書を4枚以上申請をする場合は、理由(提出先等)を記載してください。",null,null,null,null,null,null,null,null,null,null,null,null,null,null,null,null,"□2通(Two Documents)",null,null,null,"※同一の証明書を4枚以上申請をする場合は、理由(提出先等)を記載してください。"]
[null,null,null,null,null,null,null,"□3通(Three Documents)",null,null,null,"If you are applying for more than four, please provide the reason (e.g., where to submit it).",null,null,null,null,null,null,null,null,null,null,null,null,null,null,null,null,"□3通(Three Documents)",null,null,null,"If you are applying for more than four, please provide the reason (e.g., where to submit it)."]
["（注１）アポスティーユは、外国公文書の認証を不要とする条約（ハーグ条約）の締約国（地域）が提出を求めている場合のみ申請できます。 You can apply for apostille only when it is required from member country of the Hague Apostille Convention.\n（注２）同一書類の申請が４通以上で理由がない場合、３通を上限として交付いたしますので、予め御了承ください。場合によっては､提出先からの要求文書を提出して頂く可能性があります。Please note that if there is no reason why more than same four applications should be submitted, the maximum number of applications will be limited to three. In some cases, you may be asked to provide request documents by the party to submit.",null,null,null,null,null,null,null,null,null,null,null,null,null,null,null,null,null,null,null,null,"（注１）アポスティーユは、外国公文書の認証を不要とする条約（ハーグ条約）の締約国（地域）が提出を求めている場合のみ申請できます。 You can apply for apostille only when it is required from member country of the Hague Apostille Convention.\n（注２）同一書類の申請が４通以上で理由がない場合、３通を上限として交付いたしますので、予め御了承ください。場合によっては､提出先からの要求文書を提出して頂く可能性があります。Please note that if there is no reason why more than same four applications should be submitted, the maximum number of applications will be limited to three. In some cases, you may be asked to provide request documents by the party to submit."]
[]
[]
[]
["※外務省使用欄　Official use only",null,null,null,null,null,null,null,null,null,null,null,null,null,null,null,null,null,null,null,null,"※外務省使用欄　Official use only"]
["証明日付",null,null,null,null,null,null,null,null,null,null,"受理番号",null,null,null,null,null,null,null,null,null,"証明日付",null,null,null,null,null,null,null,null,null,null,"受理番号"]
[]
["証明番号",null,null,null,null,null,null,null,null,null,null,null,null,null,null,null,null,null,null,null,null,"証明番号"]

{"sheet":"外務省お願い","index":9,"n_rows":28,"n_cols":48,"rows_kept":28,"cut":false,"hidden":false,"merged":[[0,33,0,35],[0,30,0,32],[2,0,2,47],[4,0,4,47],[0,43,0,45],[0,46,0,47],[0,36,0,37],[0,38,0,40],[0,41,0,42],[36,51,36,55],[19,0,19,47],[14,0,14,47],[16,0,16,47],[17,0,17,47],[18,0,18,47],[22,0,22,47],[24,0,24,47],[32,0,32,47],[33,0,33,47],[34,0,34,47],[35,0,35,47],[20,17,20,45],[21,17,21,45],[25,17,25,21],[23,17,23,30],[6,0,6,47],[8,0,8,47],[9,0,9,47],[10,0,10,47],[12,0,12,47],[23,34,23,46],[31,0,31,47],[28,0,28,47],[29,0,29,47],[30,0,30,47],[27,17,27,21],[26,17,26,21]]}
[null,null,null,null,null,null,null,null,null,null,null,null,null,null,null,null,null,null,null,null,null,null,null,null,null,null,null,null,null,null,"令和",null,null,{"$f":"Data!$H$2-1988-30","v":-2018},null,null,"年",null,{"$f":"Data!$N$2","v":0},null,null,"月",null,{"$f":"Data!$T$2","v":0},null,null,"日"]
[]
["　外務省大阪分室　御中"]
[]
["　貴職におかれましては、日々の政務お疲れさまです。"]
[]
["　さて、本校の生徒が帰国に際しての書類を必要としておりますので、ご多忙中とは存じ"]
[]
["ますが、下記書類の証明手続きをお願いします。"]
[]
["記"]
[]
["１　在学証明書（１部）"]
[]
["２　教育課程証明書（１部）"]
[]
["３　成績証明書（１部）"]
[]
[]
[]
[null,null,null,null,null,null,null,null,null,null,null,null,null,null,null,null,null,"学校所在地"]
[null,null,null,null,null,null,null,null,null,null,null,null,null,null,null,null,null,{"$f":"学校基礎情報!$B$5","v":0}]
[]
[null,null,null,null,null,null,null,null,null,null,null,null,null,null,null,null,null,{"$f":"学校基礎情報!$B$2","v":0},null,null,null,null,null,null,null,null,null,null,null,null,null,"長",null,null,{"$f":"学校基礎情報!$B$13","v":0},null,null,null,null,null,null,null,null,null,null,null,null,"公印"]
[]
[null,null,null,null,null,null,null,null,null,null,null,null,null,null,null,null,null,"電話：",null,null,null,null,{"$f":"学校基礎情報!B9","v":0}]
[null,null,null,null,null,null,null,null,null,null,null,null,null,null,null,null,null,"FAX：",null,null,null,null,{"$f":"学校基礎情報!B10","v":0}]
[null,null,null,null,null,null,null,null,null,null,null,null,null,null,null,null,null,"E-mail：",null,null,null,null,{"$f":"学校基礎情報!B11","v":0}]